[Event "*** Titled Tuesday Blitz"]
[Site "Chess.com"]
[Date "2020.05.19"]
[Round "1"]
[White "DariaVoit"]
[Black "ViktoriyaTarasova"]
[Result "0-1"]
[WhiteElo "2523"]
[BlackElo "2270"]
[TimeControl "180+1"]
[EndTime "12:07:35 PDT"]
[Termination "ViktoriyaTarasova won by resignation"]

1. d4 {[%clk 0:02:56.7]} 1... Nf6 {[%clk 0:02:58.9]} 2. Nf3 {[%clk 0:02:56.8]}
2... e6 {[%clk 0:02:57.9]} 3. c4 {[%clk 0:02:56.9]} 3... b6 {[%clk 0:02:56.3]}
4. g3 {[%clk 0:02:57.3]} 4... Ba6 {[%clk 0:02:52]} 5. b3 {[%clk 0:02:56.3]} 5...
d5 {[%clk 0:02:51.2]} 6. Bg2 {[%clk 0:02:52.4]} 6... Bb4+ {[%clk 0:02:49.8]} 7.
Bd2 {[%clk 0:02:50.3]} 7... Bd6 {[%clk 0:02:47.2]} 8. Qc2 {[%clk 0:02:47.4]}
8... O-O {[%clk 0:02:44.9]} 9. O-O {[%clk 0:02:45.5]} 9... Nbd7 {[%clk
0:02:44.1]} 10. a4 {[%clk 0:02:42.2]} 10... Ne4 {[%clk 0:02:43.2]} 11. a5 {[%clk
0:02:39.8]} 11... Qe7 {[%clk 0:02:38.6]} 12. Rd1 {[%clk 0:02:27]} 12... f5
{[%clk 0:02:30.3]} 13. Be1 {[%clk 0:02:18.9]} 13... Rfc8 {[%clk 0:02:27.3]} 14.
Nfd2 {[%clk 0:01:56.7]} 14... c5 {[%clk 0:02:25.6]} 15. Nxe4 {[%clk 0:01:38.2]}
15... fxe4 {[%clk 0:02:17.6]} 16. cxd5 {[%clk 0:01:22.7]} 16... exd5 {[%clk
0:01:49.2]} 17. dxc5 {[%clk 0:01:22.6]} 17... Bxc5 {[%clk 0:01:45.3]} 18. Qb2
{[%clk 0:01:22.2]} 18... Nf6 {[%clk 0:01:42.1]} 19. Bh3 {[%clk 0:01:09.5]} 19...
Rd8 {[%clk 0:01:39.8]} 20. b4 {[%clk 0:01:01.5]} 20... Bd6 {[%clk 0:01:38.8]}
21. Bc3 {[%clk 0:00:53.8]} 21... Bc4 {[%clk 0:01:14.1]} 22. Na3 {[%clk
0:00:52.2]} 22... e3 {[%clk 0:00:57.6]} 23. f3 {[%clk 0:00:47.2]} 23... b5
{[%clk 0:00:45.5]} 24. Nxc4 {[%clk 0:00:41.9]} 24... dxc4 {[%clk 0:00:46]} 25.
Rd4 {[%clk 0:00:34.9]} 25... Bc7 {[%clk 0:00:39.2]} 26. Rad1 {[%clk 0:00:33.9]}
26... Rxd4 {[%clk 0:00:39.6]} 27. Bxd4 {[%clk 0:00:24.6]} 27... Rd8 {[%clk
0:00:40.3]} 28. Rc1 {[%clk 0:00:21.5]} 28... Nd5 {[%clk 0:00:38.8]} 29. Bc5
{[%clk 0:00:20.6]} 29... Qf7 {[%clk 0:00:37.8]} 30. Rd1 {[%clk 0:00:20.4]} 30...
Qg6 {[%clk 0:00:35.9]} 31. Kh1 {[%clk 0:00:15.9]} 31... Bxg3 {[%clk 0:00:32]}
32. Rg1 {[%clk 0:00:13.7]} 32... Nf4 {[%clk 0:00:30.1]} 33. Bf1 {[%clk
0:00:04.9]} 33... Rd1 {[%clk 0:00:24.6]} 34. Bxe3 {[%clk 0:00:05.2]} 34... Qh5
{[%clk 0:00:17.2]} 35. Rxg3 {[%clk 0:00:05.4]} 35... Rxf1+ {[%clk 0:00:17.2]}
36. Bg1 {[%clk 0:00:05.3]} 36... Ne6 {[%clk 0:00:15.6]} 37. Qd2 {[%clk
0:00:04.6]} 37... Qf7 {[%clk 0:00:15]} 38. Qd6 {[%clk 0:00:04.5]} 38... Rb1
{[%clk 0:00:14.4]} 39. Kg2 {[%clk 0:00:04.8]} 39... Nf4+ {[%clk 0:00:13.8]} 40.
Kh1 {[%clk 0:00:04.6]} 40... Rf1 {[%clk 0:00:13.4]} 41. Qd8+ {[%clk 0:00:03.9]}
41... Qf8 {[%clk 0:00:13.8]} 42. Qd6 {[%clk 0:00:03.9]} 42... Qxd6 {[%clk
0:00:12.8]} 0-1

[Event "*** Titled Tuesday Blitz"]
[Site "Chess.com"]
[Date "2020.05.19"]
[Round "1"]
[White "AGW2016"]
[Black "IwkooO"]
[Result "0-1"]
[WhiteElo "2236"]
[BlackElo "2547"]
[TimeControl "180+1"]
[EndTime "12:07:35 PDT"]
[Termination "IwkooO won by checkmate"]

1. e4 {[%clk 0:03:00.1]} 1... c5 {[%clk 0:02:59.8]} 2. c3 {[%clk 0:03:00.3]}
2... d5 {[%clk 0:02:59.3]} 3. exd5 {[%clk 0:02:59.9]} 3... Qxd5 {[%clk
0:03:00.2]} 4. d4 {[%clk 0:03:00.7]} 4... Nc6 {[%clk 0:03:00.9]} 5. Nf3 {[%clk
0:03:00.7]} 5... Bg4 {[%clk 0:03:01.6]} 6. Be2 {[%clk 0:03:01]} 6... e6 {[%clk
0:03:01.1]} 7. Be3 {[%clk 0:03:00.2]} 7... cxd4 {[%clk 0:02:59.5]} 8. cxd4
{[%clk 0:03:01.1]} 8... Nf6 {[%clk 0:02:59.5]} 9. Nc3 {[%clk 0:03:01.6]} 9...
Qd6 {[%clk 0:02:56.9]} 10. O-O {[%clk 0:03:01.7]} 10... Be7 {[%clk 0:02:56.7]}
11. a3 {[%clk 0:02:57]} 11... O-O {[%clk 0:02:56]} 12. Qb3 {[%clk 0:02:57.1]}
12... a6 {[%clk 0:02:35]} 13. Rfd1 {[%clk 0:02:52.9]} 13... Rfd8 {[%clk
0:01:59.9]} 14. h3 {[%clk 0:02:45.9]} 14... Bh5 {[%clk 0:01:54]} 15. Rac1 {[%clk
0:02:45.5]} 15... b5 {[%clk 0:01:43.3]} 16. Bg5 {[%clk 0:01:38.4]} 16... Bxf3
{[%clk 0:01:22.5]} 17. Bxf3 {[%clk 0:01:31.5]} 17... Nxd4 {[%clk 0:01:22.9]} 18.
Rxd4 {[%clk 0:01:23.6]} 18... Qxd4 {[%clk 0:01:22.8]} 19. Rd1 {[%clk 0:01:20.7]}
19... Qb6 {[%clk 0:01:18.9]} 20. Bxa8 {[%clk 0:01:20.5]} 20... Rxa8 {[%clk
0:01:17.9]} 21. Qc2 {[%clk 0:01:09.1]} 21... Qc6 {[%clk 0:01:08.7]} 22. Qe2
{[%clk 0:00:54.8]} 22... h6 {[%clk 0:00:54.8]} 23. Bf4 {[%clk 0:00:48.8]} 23...
Bxa3 {[%clk 0:00:48.6]} 24. bxa3 {[%clk 0:00:44]} 24... Qxc3 {[%clk 0:00:48.3]}
25. Be5 {[%clk 0:00:44.7]} 25... Qc4 {[%clk 0:00:40.4]} 26. Qf3 {[%clk 0:00:37]}
26... Qe4 {[%clk 0:00:36.9]} 27. Qg3 {[%clk 0:00:20.2]} 27... Nh5 {[%clk
0:00:36.6]} 28. Qc3 {[%clk 0:00:20.4]} 28... Nf4 {[%clk 0:00:31.8]} 29. Bxf4
{[%clk 0:00:20.6]} 29... Qxf4 {[%clk 0:00:32.7]} 30. Rd7 {[%clk 0:00:20]} 30...
a5 {[%clk 0:00:23.3]} 31. g3 {[%clk 0:00:19.7]} 31... Qe4 {[%clk 0:00:21.7]} 32.
Qc7 {[%clk 0:00:19.5]} 32... Rf8 {[%clk 0:00:14.6]} 33. Qa7 {[%clk 0:00:19.1]}
33... Rc8 {[%clk 0:00:13.6]} 34. Rd1 {[%clk 0:00:17.3]} 34... b4 {[%clk
0:00:12.4]} 35. Qxa5 {[%clk 0:00:16.5]} 35... b3 {[%clk 0:00:12.8]} 36. Qb4
{[%clk 0:00:16.5]} 36... Qc2 {[%clk 0:00:13.2]} 37. Rf1 {[%clk 0:00:16.2]} 37...
b2 {[%clk 0:00:12.7]} 38. a4 {[%clk 0:00:16.8]} 38... Qc1 {[%clk 0:00:13.1]} 39.
a5 {[%clk 0:00:16]} 39... Qxf1+ {[%clk 0:00:13.3]} 40. Kxf1 {[%clk 0:00:16.9]}
40... Rc1+ {[%clk 0:00:14]} 41. Kg2 {[%clk 0:00:17.8]} 41... b1=Q {[%clk
0:00:14.9]} 42. Qd4 {[%clk 0:00:16.8]} 42... Qa1 {[%clk 0:00:12.5]} 43. Qd8+
{[%clk 0:00:16.7]} 43... Kh7 {[%clk 0:00:13.1]} 44. Qd3+ {[%clk 0:00:17.6]}
44... g6 {[%clk 0:00:13.7]} 45. Qd7 {[%clk 0:00:16.8]} 45... Kg7 {[%clk
0:00:13.6]} 46. Qa7 {[%clk 0:00:15.5]} 46... Qe5 {[%clk 0:00:11.6]} 47. h4
{[%clk 0:00:14.8]} 47... Qe4+ {[%clk 0:00:11.6]} 48. Kh3 {[%clk 0:00:15.3]}
48... Rh1# {[%clk 0:00:11.2]} 0-1

[Event "*** Titled Tuesday Blitz"]
[Site "Chess.com"]
[Date "2020.05.19"]
[Round "1"]
[White "themind1hunter"]
[Black "Doraemon7"]
[Result "0-1"]
[WhiteElo "2357"]
[BlackElo "2665"]
[TimeControl "180+1"]
[EndTime "12:07:37 PDT"]
[Termination "Doraemon7 won by checkmate"]

1. e4 {[%clk 0:02:56.3]} 1... e5 {[%clk 0:02:58.1]} 2. Nf3 {[%clk 0:02:54.2]}
2... Nc6 {[%clk 0:02:58.6]} 3. Bb5 {[%clk 0:02:53.5]} 3... a6 {[%clk 0:02:54.6]}
4. Ba4 {[%clk 0:02:52.9]} 4... Nf6 {[%clk 0:02:55.2]} 5. O-O {[%clk 0:02:49.4]}
5... Be7 {[%clk 0:02:55.6]} 6. Re1 {[%clk 0:02:48.2]} 6... b5 {[%clk 0:02:56.1]}
7. Bb3 {[%clk 0:02:48.7]} 7... d6 {[%clk 0:02:57]} 8. c3 {[%clk 0:02:48.9]} 8...
O-O {[%clk 0:02:57.5]} 9. d4 {[%clk 0:02:49.4]} 9... Bg4 {[%clk 0:02:55.1]} 10.
Be3 {[%clk 0:02:49.4]} 10... exd4 {[%clk 0:02:49.9]} 11. cxd4 {[%clk 0:02:50.3]}
11... Na5 {[%clk 0:02:48]} 12. Bc2 {[%clk 0:02:47.2]} 12... c5 {[%clk
0:02:45.4]} 13. h3 {[%clk 0:02:45.1]} 13... Bh5 {[%clk 0:02:30.4]} 14. g4 {[%clk
0:02:40.9]} 14... Bg6 {[%clk 0:02:29.5]} 15. Nbd2 {[%clk 0:02:40.9]} 15... Rc8
{[%clk 0:02:23.5]} 16. d5 {[%clk 0:02:39.2]} 16... Nd7 {[%clk 0:02:20.7]} 17. b3
{[%clk 0:02:36.3]} 17... Bf6 {[%clk 0:02:07.5]} 18. Rb1 {[%clk 0:02:35.9]} 18...
Re8 {[%clk 0:02:05.9]} 19. Nf1 {[%clk 0:02:29.2]} 19... Bc3 {[%clk 0:01:48.7]}
20. Bd2 {[%clk 0:02:27]} 20... Bxd2 {[%clk 0:01:39.1]} 21. Qxd2 {[%clk
0:02:15.4]} 21... b4 {[%clk 0:01:27]} 22. Ng3 {[%clk 0:02:11.4]} 22... h6 {[%clk
0:01:17]} 23. Bd3 {[%clk 0:02:05.4]} 23... Ra8 {[%clk 0:01:12.8]} 24. Qc2 {[%clk
0:01:59.6]} 24... Qf6 {[%clk 0:01:11.8]} 25. Kg2 {[%clk 0:01:59]} 25... Rec8
{[%clk 0:01:02.1]} 26. Nd2 {[%clk 0:01:56.2]} 26... Ne5 {[%clk 0:01:00.9]} 27.
Ne2 {[%clk 0:01:50]} 27... h5 {[%clk 0:00:34.4]} 28. f4 {[%clk 0:01:37.3]} 28...
Nxd3 {[%clk 0:00:17.3]} 29. Qxd3 {[%clk 0:01:31.6]} 29... Re8 {[%clk 0:00:16.2]}
30. h4 {[%clk 0:01:32.5]} 30... hxg4 {[%clk 0:00:16.2]} 31. Kg3 {[%clk
0:01:30.8]} 31... Bh7 {[%clk 0:00:15.4]} 32. f5 {[%clk 0:01:25.6]} 32... Qe5+
{[%clk 0:00:15.1]} 33. Nf4 {[%clk 0:01:25.5]} 33... Re7 {[%clk 0:00:14.4]} 34.
Kxg4 {[%clk 0:01:23]} 34... Rae8 {[%clk 0:00:13.4]} 35. Nf3 {[%clk 0:01:15]}
35... Qf6 {[%clk 0:00:12.6]} 36. Ng5 {[%clk 0:01:12.9]} 36... Bxf5+ {[%clk
0:00:12.7]} 37. exf5 {[%clk 0:01:11.2]} 37... Rxe1 {[%clk 0:00:13.6]} 38. Rxe1
{[%clk 0:01:10.8]} 38... Rxe1 {[%clk 0:00:14.5]} 39. Qxa6 {[%clk 0:01:11.6]}
39... Rg1+ {[%clk 0:00:14.8]} 40. Kf3 {[%clk 0:01:00.6]} 40... Qc3+ {[%clk
0:00:15.4]} 41. Nd3 {[%clk 0:00:57]} 41... g6 {[%clk 0:00:12.1]} 42. fxg6 {[%clk
0:00:52]} 42... Qf6+ {[%clk 0:00:11.7]} 43. Ke3 {[%clk 0:00:50.6]} 43... Rg3+
{[%clk 0:00:10.8]} 44. Ke2 {[%clk 0:00:47.8]} 44... Qe7+ {[%clk 0:00:09.1]} 45.
Kd1 {[%clk 0:00:40.4]} 45... Rg1+ {[%clk 0:00:08.7]} 46. Kd2 {[%clk 0:00:38.4]}
46... Rg2+ {[%clk 0:00:08.5]} 47. Kc1 {[%clk 0:00:35.1]} 47... Qe3+ {[%clk
0:00:08.4]} 48. Kb1 {[%clk 0:00:35.5]} 48... Rg1+ {[%clk 0:00:07]} 49. Kb2
{[%clk 0:00:35.4]} 49... Qd2# {[%clk 0:00:07.1]} 0-1

[Event "*** Titled Tuesday Blitz"]
[Site "Chess.com"]
[Date "2020.05.19"]
[Round "1"]
[White "Azoulas1"]
[Black "IMJonathanCarlstedt"]
[Result "0-1"]
[WhiteElo "1946"]
[BlackElo "2474"]
[TimeControl "180+1"]
[EndTime "12:07:37 PDT"]
[Termination "IMJonathanCarlstedt won on time"]

1. e4 {[%clk 0:03:00.9]} 1... g6 {[%clk 0:02:55.3]} 2. d4 {[%clk 0:02:59]} 2...
Bg7 {[%clk 0:02:55.2]} 3. Nc3 {[%clk 0:02:57.2]} 3... d6 {[%clk 0:02:54.2]} 4.
f4 {[%clk 0:02:56]} 4... a6 {[%clk 0:02:54.3]} 5. Nf3 {[%clk 0:02:55.1]} 5... b5
{[%clk 0:02:54.7]} 6. Bd3 {[%clk 0:02:52.5]} 6... Bb7 {[%clk 0:02:55.1]} 7. Be3
{[%clk 0:02:51.3]} 7... Nd7 {[%clk 0:02:54.2]} 8. O-O {[%clk 0:02:49.8]} 8...
Rc8 {[%clk 0:02:52.2]} 9. e5 {[%clk 0:02:47.3]} 9... c5 {[%clk 0:02:51.1]} 10.
e6 {[%clk 0:02:37.5]} 10... fxe6 {[%clk 0:02:52]} 11. Ng5 {[%clk 0:02:35.6]}
11... Nf8 {[%clk 0:02:36.8]} 12. dxc5 {[%clk 0:02:19.4]} 12... dxc5 {[%clk
0:02:28.5]} 13. Be4 {[%clk 0:02:02.9]} 13... Bxe4 {[%clk 0:02:17.4]} 14. Ncxe4
{[%clk 0:02:00.8]} 14... h6 {[%clk 0:02:16.5]} 15. Nf3 {[%clk 0:01:34.1]} 15...
Qxd1 {[%clk 0:02:13.2]} 16. Raxd1 {[%clk 0:01:32.4]} 16... Nd7 {[%clk
0:02:08.3]} 17. c3 {[%clk 0:01:27.3]} 17... Ngf6 {[%clk 0:02:04.5]} 18. Nfd2
{[%clk 0:01:18.5]} 18... O-O {[%clk 0:01:59.8]} 19. h3 {[%clk 0:01:16.8]} 19...
Nd5 {[%clk 0:01:56.9]} 20. Rde1 {[%clk 0:01:10.3]} 20... c4 {[%clk 0:01:50.1]}
21. g3 {[%clk 0:01:05.8]} 21... e5 {[%clk 0:01:47.8]} 22. fxe5 {[%clk
0:00:58.9]} 22... Nxe5 {[%clk 0:01:48.7]} 23. Bd4 {[%clk 0:00:57.1]} 23... Nd3
{[%clk 0:01:47.9]} 24. Bxg7 {[%clk 0:00:50.2]} 24... Kxg7 {[%clk 0:01:48.8]} 25.
Rb1 {[%clk 0:00:35.5]} 25... Rxf1+ {[%clk 0:01:44.8]} 26. Nxf1 {[%clk
0:00:33.6]} 26... Nf6 {[%clk 0:01:40.6]} 27. Nfd2 {[%clk 0:00:28.9]} 27... Rc6
{[%clk 0:01:37]} 28. Kg2 {[%clk 0:00:21.1]} 28... Re6 {[%clk 0:01:28.3]} 29. Kf3
{[%clk 0:00:19.7]} 29... Ne5+ {[%clk 0:01:18.8]} 30. Kg2 {[%clk 0:00:18.9]}
30... Nf7 {[%clk 0:01:05]} 31. Kf3 {[%clk 0:00:17.2]} 31... Nxe4 {[%clk
0:01:01]} 32. Nxe4 {[%clk 0:00:16.7]} 32... Ne5+ {[%clk 0:00:58.9]} 33. Kg2
{[%clk 0:00:15.9]} 33... Nd3 {[%clk 0:00:58.4]} 34. Kf3 {[%clk 0:00:15.9]} 34...
Re5 {[%clk 0:00:58.2]} 35. b3 {[%clk 0:00:13.7]} 35... cxb3 {[%clk 0:00:51.4]}
36. axb3 {[%clk 0:00:12.6]} 36... Nc5 {[%clk 0:00:51.3]} 37. Nxc5 {[%clk
0:00:09.3]} 37... Rxc5 {[%clk 0:00:52.2]} 38. Rc1 {[%clk 0:00:08.7]} 38... a5
{[%clk 0:00:49.6]} 39. Ke3 {[%clk 0:00:07.8]} 39... e5 {[%clk 0:00:44.9]} 40.
Ke4 {[%clk 0:00:06.7]} 40... a4 {[%clk 0:00:44.4]} 41. bxa4 {[%clk 0:00:06.1]}
41... bxa4 {[%clk 0:00:43.5]} 42. c4 {[%clk 0:00:05.1]} 42... Kf6 {[%clk
0:00:39.2]} 43. Kd3 {[%clk 0:00:03.8]} 43... Ra5 {[%clk 0:00:35]} 44. Ra1 {[%clk
0:00:03.1]} 44... Ke6 {[%clk 0:00:31.7]} 45. c5 {[%clk 0:00:03]} 45... Kd5
{[%clk 0:00:30.2]} 46. c6 {[%clk 0:00:01.8]} 46... Kxc6 {[%clk 0:00:30.1]} 47.
Ke4 {[%clk 0:00:01.3]} 47... a3 {[%clk 0:00:29.2]} 48. g4 {[%clk 0:00:01.4]}
48... a2 {[%clk 0:00:28.9]} 49. h4 {[%clk 0:00:01.5]} 49... Kd6 {[%clk
0:00:28.8]} 50. h5 {[%clk 0:00:01.5]} 50... Ra4+ {[%clk 0:00:28]} 0-1

[Event "*** Titled Tuesday Blitz"]
[Site "Chess.com"]
[Date "2020.05.19"]
[Round "1"]
[White "Arjun2002"]
[Black "Danfii"]
[Result "1-0"]
[WhiteElo "2652"]
[BlackElo "2346"]
[TimeControl "180+1"]
[EndTime "12:07:38 PDT"]
[Termination "Arjun2002 won by checkmate"]

1. e4 {[%clk 0:03:00.7]} 1... e5 {[%clk 0:02:59.6]} 2. Nf3 {[%clk 0:03:00.6]}
2... Nc6 {[%clk 0:02:59.5]} 3. Bc4 {[%clk 0:03:01]} 3... Bc5 {[%clk 0:02:59]} 4.
c3 {[%clk 0:03:00.3]} 4... Nf6 {[%clk 0:02:59]} 5. d3 {[%clk 0:03:00.6]} 5... d6
{[%clk 0:02:58.5]} 6. O-O {[%clk 0:03:00]} 6... a6 {[%clk 0:02:58.7]} 7. a4
{[%clk 0:02:57.2]} 7... h6 {[%clk 0:02:58.7]} 8. Re1 {[%clk 0:02:55.5]} 8... O-O
{[%clk 0:02:58]} 9. h3 {[%clk 0:02:48.6]} 9... Re8 {[%clk 0:02:57.7]} 10. Nbd2
{[%clk 0:02:44.5]} 10... Be6 {[%clk 0:02:57.1]} 11. Bxe6 {[%clk 0:02:41.5]}
11... Rxe6 {[%clk 0:02:58]} 12. b4 {[%clk 0:02:41.8]} 12... Ba7 {[%clk
0:02:57.5]} 13. Qc2 {[%clk 0:02:42.4]} 13... Ne7 {[%clk 0:02:57.2]} 14. Nf1
{[%clk 0:02:42.1]} 14... d5 {[%clk 0:02:47.8]} 15. Ng3 {[%clk 0:02:38.1]} 15...
Ng6 {[%clk 0:02:46]} 16. c4 {[%clk 0:02:34.2]} 16... c6 {[%clk 0:02:42]} 17. Bd2
{[%clk 0:02:16]} 17... Qd7 {[%clk 0:02:28.6]} 18. Red1 {[%clk 0:02:06.5]} 18...
Rae8 {[%clk 0:02:23.1]} 19. Rab1 {[%clk 0:02:04]} 19... Bb8 {[%clk 0:02:09.5]}
20. b5 {[%clk 0:01:58.3]} 20... axb5 {[%clk 0:02:08.9]} 21. axb5 {[%clk
0:01:56.8]} 21... Nf4 {[%clk 0:01:55.3]} 22. bxc6 {[%clk 0:01:34.8]} 22... bxc6
{[%clk 0:01:54.7]} 23. Rb3 {[%clk 0:01:29.3]} 23... Rd8 {[%clk 0:01:31]} 24.
Rdb1 {[%clk 0:01:27.9]} 24... Bc7 {[%clk 0:01:30.7]} 25. Rb7 {[%clk 0:01:25.1]}
25... dxe4 {[%clk 0:01:26.4]} 26. dxe4 {[%clk 0:01:22]} 26... Nd3 {[%clk
0:01:24.9]} 27. Ba5 {[%clk 0:01:18.5]} 27... Ne8 {[%clk 0:01:01.4]} 28. Bxc7
{[%clk 0:01:13.9]} 28... Nxc7 {[%clk 0:01:02.3]} 29. Rd1 {[%clk 0:01:13.7]}
29... Rd6 {[%clk 0:00:52.1]} 30. Nf5 {[%clk 0:01:08.8]} 30... Re6 {[%clk
0:00:42.1]} 31. Rxc7 {[%clk 0:00:59.9]} 31... Qxc7 {[%clk 0:00:40.1]} 32. Rxd3
{[%clk 0:01:00.1]} 32... Rxd3 {[%clk 0:00:40.6]} 33. Qxd3 {[%clk 0:01:01]} 33...
h5 {[%clk 0:00:30.5]} 34. Ng5 {[%clk 0:00:53.7]} 34... Re8 {[%clk 0:00:30.1]}
35. Nd6 {[%clk 0:00:53.9]} 35... Rd8 {[%clk 0:00:27.6]} 36. c5 {[%clk
0:00:49.3]} 36... Rd7 {[%clk 0:00:22.5]} 37. Qf3 {[%clk 0:00:39.1]} 37... f6
{[%clk 0:00:21.9]} 38. Ne6 {[%clk 0:00:38.9]} 38... Qa7 {[%clk 0:00:21.3]} 39.
Qxh5 {[%clk 0:00:37.6]} 39... Re7 {[%clk 0:00:20.4]} 40. Nd8 {[%clk 0:00:27.1]}
40... Qxc5 {[%clk 0:00:19]} 41. Nf5 {[%clk 0:00:20.6]} 41... Qc1+ {[%clk
0:00:17.8]} 42. Kh2 {[%clk 0:00:20.7]} 42... Qf4+ {[%clk 0:00:17.6]} 43. Ng3
{[%clk 0:00:21]} 43... Qxf2 {[%clk 0:00:16.3]} 44. Nxc6 {[%clk 0:00:20.7]} 44...
Rc7 {[%clk 0:00:14.2]} 45. Qe8+ {[%clk 0:00:20.5]} 45... Kh7 {[%clk 0:00:14.8]}
46. Ne7 {[%clk 0:00:20.7]} 46... Rc2 {[%clk 0:00:13.7]} 47. Qg8+ {[%clk
0:00:20.5]} 47... Kh6 {[%clk 0:00:14.4]} 48. Qh8+ {[%clk 0:00:20.5]} 48... Kg5
{[%clk 0:00:14.4]} 49. Qh5+ {[%clk 0:00:19]} 49... Kf4 {[%clk 0:00:14.7]} 50.
Nd5# {[%clk 0:00:19.5]} 1-0

[Event "*** Titled Tuesday Blitz"]
[Site "Chess.com"]
[Date "2020.05.19"]
[Round "1"]
[White "Ranindu2003"]
[Black "Oleksandr_Bortnyk"]
[Result "0-1"]
[WhiteElo "2458"]
[BlackElo "2993"]
[TimeControl "180+1"]
[EndTime "12:07:40 PDT"]
[Termination "Oleksandr_Bortnyk won on time"]

1. e4 {[%clk 0:02:57.9]} 1... Nf6 {[%clk 0:02:59.9]} 2. e5 {[%clk 0:02:57.4]}
2... Nd5 {[%clk 0:03:00.3]} 3. d4 {[%clk 0:02:57.6]} 3... d6 {[%clk 0:03:00.7]}
4. Nf3 {[%clk 0:02:57.4]} 4... dxe5 {[%clk 0:03:01.1]} 5. Nxe5 {[%clk 0:02:57]}
5... c6 {[%clk 0:03:01.7]} 6. Be2 {[%clk 0:02:56.6]} 6... Bf5 {[%clk 0:03:01.9]}
7. c3 {[%clk 0:02:53.6]} 7... Nd7 {[%clk 0:03:02]} 8. O-O {[%clk 0:02:34.5]}
8... Nxe5 {[%clk 0:02:39.2]} 9. dxe5 {[%clk 0:02:35.4]} 9... Qc7 {[%clk
0:02:40.1]} 10. f4 {[%clk 0:02:23.1]} 10... e6 {[%clk 0:02:39.1]} 11. Bd3 {[%clk
0:02:15.4]} 11... O-O-O {[%clk 0:02:20.2]} 12. Bxf5 {[%clk 0:01:48.6]} 12...
Bc5+ {[%clk 0:01:59.4]} 13. Kh1 {[%clk 0:01:39.1]} 13... Ne3 {[%clk 0:01:57.9]}
14. Qf3 {[%clk 0:01:12.6]} 14... Nxf1 {[%clk 0:01:54.1]} 15. Bc2 {[%clk
0:01:09.8]} 15... Nxh2 {[%clk 0:00:53.9]} 16. Kxh2 {[%clk 0:01:08.1]} 16... Qe7
{[%clk 0:00:54.8]} 17. g3 {[%clk 0:00:59.1]} 17... h5 {[%clk 0:00:51]} 18. Nd2
{[%clk 0:00:56.5]} 18... f5 {[%clk 0:00:44.5]} 19. exf6 {[%clk 0:00:47.8]} 19...
gxf6 {[%clk 0:00:45.4]} 20. Ne4 {[%clk 0:00:42.3]} 20... h4 {[%clk 0:00:24.3]}
21. g4 {[%clk 0:00:41.1]} 21... Bb6 {[%clk 0:00:24.7]} 22. Be3 {[%clk
0:00:29.5]} 22... f5 {[%clk 0:00:22.8]} 23. Nf2 {[%clk 0:00:19.5]} 23... fxg4
{[%clk 0:00:18.5]} 24. Nxg4 {[%clk 0:00:20.4]} 24... Kb8 {[%clk 0:00:18.7]} 25.
Bxb6 {[%clk 0:00:13.6]} 25... axb6 {[%clk 0:00:14]} 26. Qe3 {[%clk 0:00:13.8]}
26... h3 {[%clk 0:00:11.7]} 27. a4 {[%clk 0:00:12.2]} 27... Qc5 {[%clk
0:00:04.5]} 28. Qe2 {[%clk 0:00:05.9]} 28... Ka8 {[%clk 0:00:02.6]} 29. a5
{[%clk 0:00:05.9]} 29... b5 {[%clk 0:00:03.1]} 30. a6 {[%clk 0:00:05.9]} 30...
b6 {[%clk 0:00:03.7]} 31. Be4 {[%clk 0:00:04.1]} 31... Ka7 {[%clk 0:00:03.5]}
32. Ne5 {[%clk 0:00:04.2]} 32... Rc8 {[%clk 0:00:03.1]} 33. Rd1 {[%clk
0:00:03.8]} 33... Rc7 {[%clk 0:00:02.9]} 34. Qf3 {[%clk 0:00:03]} 34... Rg8
{[%clk 0:00:02.2]} 35. Bxc6 {[%clk 0:00:02]} 35... Rg2+ {[%clk 0:00:01.7]} 36.
Kxh3 {[%clk 0:00:02.5]} 36... Rf2 {[%clk 0:00:02.6]} 37. Qh1 {[%clk 0:00:01.2]}
37... Qe3+ {[%clk 0:00:02.3]} 0-1

[Event "*** Titled Tuesday Blitz"]
[Site "Chess.com"]
[Date "2020.05.19"]
[Round "1"]
[White "OparinGrigoriy"]
[Black "Bossche-CM"]
[Result "1/2-1/2"]
[WhiteElo "2903"]
[BlackElo "2459"]
[TimeControl "180+1"]
[EndTime "12:07:40 PDT"]
[Termination "Game drawn by agreement"]

1. d4 {[%clk 0:02:50.5]} 1... Nf6 {[%clk 0:02:59.3]} 2. c4 {[%clk 0:02:50.4]}
2... e6 {[%clk 0:02:59]} 3. Nf3 {[%clk 0:02:50.5]} 3... c5 {[%clk 0:02:58.4]} 4.
d5 {[%clk 0:02:50.2]} 4... exd5 {[%clk 0:02:59]} 5. cxd5 {[%clk 0:02:51.1]} 5...
d6 {[%clk 0:02:59.4]} 6. Nc3 {[%clk 0:02:48.1]} 6... g6 {[%clk 0:02:59.5]} 7.
Bf4 {[%clk 0:02:46.5]} 7... Bg7 {[%clk 0:03:00.1]} 8. Qa4+ {[%clk 0:02:45.6]}
8... Bd7 {[%clk 0:02:52.7]} 9. Qb3 {[%clk 0:02:42.7]} 9... Bc8 {[%clk
0:02:50.6]} 10. h3 {[%clk 0:02:36.9]} 10... O-O {[%clk 0:02:49.5]} 11. e3 {[%clk
0:02:26.3]} 11... a6 {[%clk 0:02:45.5]} 12. a4 {[%clk 0:02:24.3]} 12... Ne8
{[%clk 0:02:38.9]} 13. Be2 {[%clk 0:02:14.9]} 13... b6 {[%clk 0:02:34.8]} 14.
O-O {[%clk 0:02:12.8]} 14... Nd7 {[%clk 0:02:34.6]} 15. Nd2 {[%clk 0:02:00.9]}
15... Rb8 {[%clk 0:02:28.1]} 16. Bh2 {[%clk 0:01:57.5]} 16... Ne5 {[%clk
0:02:19.7]} 17. Rad1 {[%clk 0:01:50]} 17... f5 {[%clk 0:02:07.2]} 18. f4 {[%clk
0:01:40.1]} 18... Nf7 {[%clk 0:01:57.9]} 19. e4 {[%clk 0:01:39.2]} 19... fxe4
{[%clk 0:01:57.6]} 20. Ncxe4 {[%clk 0:01:30.5]} 20... Nf6 {[%clk 0:01:57]} 21.
Nxf6+ {[%clk 0:01:26.6]} 21... Bxf6 {[%clk 0:01:57.9]} 22. Ne4 {[%clk 0:01:26]}
22... Bg7 {[%clk 0:01:54]} 23. Bg4 {[%clk 0:01:04.6]} 23... Bxg4 {[%clk
0:01:38.8]} 24. hxg4 {[%clk 0:01:05.5]} 24... Re8 {[%clk 0:01:39]} 25. Qf3
{[%clk 0:01:00.1]} 25... Bxb2 {[%clk 0:01:23.5]} 26. f5 {[%clk 0:00:58.7]} 26...
Ng5 {[%clk 0:01:00]} 27. Nxg5 {[%clk 0:00:53.9]} 27... Qxg5 {[%clk 0:01:00.9]}
28. Bxd6 {[%clk 0:00:53.9]} 28... Rb7 {[%clk 0:00:54.9]} 29. Bf4 {[%clk
0:00:50.8]} 29... Qf6 {[%clk 0:00:51.4]} 30. d6 {[%clk 0:00:48.5]} 30... Rd7
{[%clk 0:00:48.5]} 31. Qd5+ {[%clk 0:00:21.7]} 31... Qf7 {[%clk 0:00:39.8]} 32.
g3 {[%clk 0:00:13.2]} 32... Bd4+ {[%clk 0:00:35.5]} 33. Rxd4 {[%clk 0:00:13.1]}
33... cxd4 {[%clk 0:00:34.8]} 34. Qxd4 {[%clk 0:00:14]} 34... gxf5 {[%clk
0:00:30.4]} 35. gxf5 {[%clk 0:00:12.8]} 35... Rc8 {[%clk 0:00:20.3]} 36. Qxb6
{[%clk 0:00:08.8]} 36... Qc4 {[%clk 0:00:19.4]} 37. Qe3 {[%clk 0:00:07.6]} 37...
Qc5 {[%clk 0:00:18.6]} 38. Re1 {[%clk 0:00:03.4]} 38... Qxe3+ {[%clk 0:00:15.2]}
39. Rxe3 {[%clk 0:00:04.3]} 39... Rc4 {[%clk 0:00:13.4]} 40. f6 {[%clk
0:00:03.3]} 40... Kf7 {[%clk 0:00:11.8]} 41. Kg2 {[%clk 0:00:01.5]} 41... Rxa4
{[%clk 0:00:11.5]} 42. Rc3 {[%clk 0:00:01.3]} 42... Rxf4 {[%clk 0:00:10.2]} 43.
gxf4 {[%clk 0:00:02.2]} 43... Rxd6 {[%clk 0:00:10.6]} 44. Kf3 {[%clk 0:00:02.5]}
44... Kxf6 {[%clk 0:00:10.1]} 45. Ra3 {[%clk 0:00:03.2]} 45... h6 {[%clk
0:00:08.8]} 46. Ra5 {[%clk 0:00:03.7]} 46... Rb6 {[%clk 0:00:08.4]} 47. Kg4
{[%clk 0:00:04.2]} 1/2-1/2